[Event "Rapid Tournament (RAP)"]
[Site "Biel, Switzerland"]
[Date "2026.07.12"]
[Round "2.34"]
[White "Radovcic, Branimir"]
[Black "El-Mais, Ibaa"]
[Result "0-1"]
[TimeControl "15 + 5"]
[WhiteTitle "-"]
[BlackTitle "-"]
[WhiteFideId "14595346"]
[BlackFideId "1312715"]
[WhiteElo "1840"]
[BlackElo "2100"]

1. e4 {[%emt 00:17:22]} e6 {[%emt 00:00:04]} 2. Qe2 {[%emt 00:00:04]} c5 {[%emt
00:00:07]} 3. g3 Nc6 {[%emt 00:00:03]} 4. Bg2 {[%emt 00:00:01]} g6 {[%emt
00:00:13]} 5. Nf3 {[%emt 00:00:02]} Bg7 {[%emt 00:00:02]} 6. c3 {[%emt
00:00:03]} Nge7 {[%emt 00:00:09]} 7. O-O {[%emt 00:00:03]} O-O {[%emt
00:00:03]} 8. d3 {[%emt 00:00:10]} d5 {[%emt 00:00:33]} 9. Nbd2 {[%emt
00:00:13]} b6 {[%emt 00:00:30]} 10. h4 {[%emt 00:00:53]} Ba6 {[%emt 00:00:30]}
11. c4 {[%emt 00:01:09]} dxc4 {[%emt 00:01:10]} 12. dxc4 {[%emt 00:00:02]} Nd4
{[%emt 00:00:24]} 13. Nxd4 {[%emt 00:01:06]} Qxd4 {[%emt 00:00:02]} 14. Rb1
{[%emt 00:01:07]} Rad8 {[%emt 00:00:24]} 15. b3 {[%emt 00:00:36]} Qd3 {[%emt
00:00:27]} 16. Qxd3 {[%emt 00:01:21]} Rxd3 {[%emt 00:00:02]} 17. Nf3 {[%emt
00:00:27]} Rfd8 {[%emt 00:00:14]} 18. Bb2 {[%emt 00:00:14]} Bxb2 {[%emt
00:00:25]} 19. Rxb2 {[%emt 00:00:01]} Bb7 {[%emt 00:01:01]} 20. Re2 {[%emt
00:00:03]} f6 {[%emt 00:00:39]} 21. Rfe1 {[%emt 00:00:05]} e5 {[%emt 00:00:29]}
22. Re3 {[%emt 00:00:46]} Rxe3 {[%emt 00:00:39]} 23. Rxe3 {[%emt 00:00:02]} Nc6
{[%emt 00:01:06]} 24. Kf1 {[%emt 00:00:14]} Bc8 {[%emt 00:00:25]} 25. Re2
{[%emt 00:01:13]} Kf8 {[%emt 00:04:02]} 26. Rd2 {[%emt 00:00:18]} Bd7 {[%emt
00:00:08]} 27. Ke2 {[%emt 00:01:08]} Ke7 {[%emt 00:00:01]} 28. Ke3 {[%emt
00:00:14]} Ra8 {[%emt 00:00:14]} 29. Ne1 {[%emt 00:00:10]} a5 {[%emt 00:00:35]}
30. a4 {[%emt 00:00:08]} Nd4 {[%emt 00:00:07]} 31. Rb2 {[%emt 00:00:19]} Bc6
{[%emt 00:00:14]} 32. Nc2 Rd8 {[%emt 00:00:10]} 33. Nxd4 {[%emt 00:00:22]}
cxd4+ {[%emt 00:00:03]} 34. Kd3 {[%emt 00:00:05]} Kd6 {[%emt 00:00:03]} 35. b4
{[%emt 00:00:17]} axb4 {[%emt 00:00:02]} 36. Rxb4 {[%emt 00:00:01]} Kc5 {[%emt
00:00:01]} 37. Rb2 {[%emt 00:00:52]} Ra8 {[%emt 00:00:03]} 38. Ra2 {[%emt
00:00:20]} Rxa4 {[%emt 00:00:21]} 39. Rxa4 {[%emt 00:00:01]} Bxa4 {[%emt
00:00:02]} 40. f4 Bb3 {[%emt 00:00:07]} 41. f5 {[%emt 00:00:12]} Bxc4+ {[%emt
00:00:04]} 42. Kd2 b5 {[%emt 00:01:07]} 43. fxg6 {[%emt 00:00:02]} hxg6 {[%emt
00:00:01]} 44. g4 g5 {[%emt 00:00:06]} 45. h5 {[%emt 00:00:03]} Bg8 {[%emt
00:00:51]} 46. Bf1 {[%emt 00:00:18]} Bh7 {[%emt 00:00:04]} 47. Bd3 {[%emt
00:00:05]} Kb4 {[%emt 00:00:07]} 48. Kc2 {[%emt 00:00:04]} Ka4 {[%emt
00:00:03]} 49. Kb2 {[%emt 00:00:14]} Kb4 {[%emt 00:00:16]} 50. Bc2 {[%emt
00:00:12]} Kc4 {[%emt 00:00:06]} 51. Bb3+ {[%emt 00:00:02]} Kd3 {[%emt
00:00:08]} 52. Bf7 {[%emt 00:00:01]} Ke2 {[%emt 00:00:14]} 53. Bg6 {[%emt
00:00:02]} Bg8 54. h6 d3 {[%emt 00:00:01]} 55. Be8 {[%emt 00:00:36]} d2 {[%emt
00:00:11]} 56. Bxb5 {[%emt 00:00:02]} Ke1 57. Ba4 {[%emt 00:00:30]} Bh7 {[%emt
00:00:06]} 58. Bc2 {[%emt 00:00:05]} d1=Q {[%emt 00:00:14]} 0-1

[Event "Rapid Tournament (RAP)"]
[Site "Biel, Switzerland"]
[Date "2026.07.12"]
[Round "2.35"]
[White "Fogo Esquivel, Levi Kalani Alexander"]
[Black "Erb, Bernhard"]
[Result "1-0"]
[TimeControl "15 + 5"]
[WhiteTitle "-"]
[BlackTitle "-"]
[WhiteFideId "5183189"]
[BlackFideId "1319809"]
[WhiteElo "2088"]
[BlackElo "1837"]

1. e4 {[%clk 00:15:04]} {[%emt 00:00:06]} d5 {[%clk 00:15:06]} {[%emt
00:00:03]} 2. exd5 {[%clk 00:15:02]} {[%emt 00:00:07]} Nf6 {[%clk 00:15:09]}
{[%emt 00:00:03]} 3. d4 {[%clk 00:14:52]} {[%emt 00:00:15]} Nxd5 {[%clk
00:15:10]} {[%emt 00:00:03]} 4. Nf3 {[%clk 00:14:55]} {[%emt 00:00:03]} Bf5
{[%clk 00:15:09]} {[%emt 00:00:06]} 5. Be2 {[%clk 00:14:31]} {[%emt 00:00:29]}
Nc6 {[%clk 00:15:00]} {[%emt 00:00:14]} 6. O-O {[%clk 00:14:33]} {[%emt
00:00:03]} Ndb4 {[%clk 00:14:39]} {[%emt 00:00:25]} 7. Na3 {[%clk 00:14:33]}
{[%emt 00:00:06]} e6 {[%clk 00:14:40]} {[%emt 00:00:04]} 8. c3 {[%clk
00:14:34]} {[%emt 00:00:04]} Nd5 {[%clk 00:14:38]} {[%emt 00:00:06]} 9. Nc4
{[%clk 00:14:37]} {[%emt 00:00:03]} Be7 {[%clk 00:14:36]} {[%emt 00:00:07]} 10.
Nce5 {[%clk 00:14:12]} {[%emt 00:00:30]} Nxe5 {[%clk 00:13:57]} {[%emt
00:00:44]} 11. Nxe5 {[%clk 00:14:11]} {[%emt 00:00:06]} O-O {[%clk 00:13:58]}
{[%emt 00:00:04]} 12. Qb3 {[%clk 00:13:37]} {[%emt 00:00:39]} Qc8 {[%clk
00:13:20]} {[%emt 00:00:43]} 13. Bf3 {[%clk 00:13:19]} {[%emt 00:00:22]} Rb8
{[%clk 00:12:46]} {[%emt 00:00:40]} 14. Bxd5 {[%clk 00:12:49]} {[%emt
00:00:35]} exd5 {[%clk 00:12:12]} {[%emt 00:00:11]} 15. Qxd5 {[%clk 00:12:51]}
{[%emt 00:00:31]} Bd6 {[%clk 00:12:06]} {[%emt 00:00:12]} 16. Bf4 {[%clk
00:12:32]} {[%emt 00:00:23]} Be6 {[%clk 00:11:59]} {[%emt 00:00:12]} 17. Qf3
{[%clk 00:12:29]} {[%emt 00:00:07]} b6 {[%clk 00:11:44]} {[%emt 00:00:21]} 18.
Nc6 {[%clk 00:12:26]} {[%emt 00:00:08]} Bg4 {[%clk 00:11:10]} {[%emt 00:00:39]}
19. Qd5 {[%clk 00:12:23]} {[%emt 00:00:08]} Be6 {[%clk 00:11:13]} {[%emt
00:00:02]} 20. Qf3 {[%clk 00:11:57]} {[%emt 00:00:31]} Bg4 {[%clk 00:11:16]}
{[%emt 00:00:02]} 21. Qg3 {[%clk 00:11:56]} {[%emt 00:00:06]} Bxf4 {[%clk
00:11:19]} {[%emt 00:00:03]} 22. Qxf4 {[%clk 00:11:59]} {[%emt 00:00:01]} Qd7
{[%clk 00:10:34]} {[%emt 00:00:50]} 23. Ne5 {[%clk 00:11:59]} {[%emt 00:00:04]}
Qf5 {[%clk 00:10:36]} {[%emt 00:00:04]} 24. Qxg4 {[%clk 00:12:02]} {[%emt
00:00:02]} Qc2 {[%clk 00:10:33]} {[%emt 00:00:07]} 25. Nd7 {[%clk 00:12:03]}
{[%emt 00:00:04]} 1-0

[Event "Rapid Tournament (RAP)"]
[Site "Biel, Switzerland"]
[Date "2026.07.12"]
[Round "2.36"]
[White "Gireada, Lucas"]
[Black "Xu, Chang(Cq)"]
[Result "0-1"]
[TimeControl "15 + 5"]
[WhiteTitle "-"]
[BlackTitle "-"]
[WhiteFideId "1373544"]
[BlackFideId "8641757"]
[WhiteElo "1837"]
[BlackElo "2082"]

1. d4 {[%clk 00:15:07]} {[%emt 00:00:02]} Nf6 {[%clk 00:15:07]} {[%emt
00:00:05]} 2. c4 {[%clk 00:15:09]} {[%emt 00:00:01]} e6 {[%clk 00:15:10]}
{[%emt 00:00:02]} 3. Nf3 {[%clk 00:15:12]} {[%emt 00:00:05]} b6 {[%clk
00:15:13]} 4. g3 {[%clk 00:15:15]} {[%emt 00:00:01]} Ba6 {[%clk 00:15:15]}
{[%emt 00:00:03]} 5. b3 {[%clk 00:15:16]} {[%emt 00:00:04]} Bb4+ {[%clk
00:15:18]} {[%emt 00:00:02]} 6. Bd2 {[%clk 00:15:16]} {[%emt 00:00:06]} Be7
{[%clk 00:15:21]} {[%emt 00:00:02]} 7. Bg2 {[%clk 00:15:09]} {[%emt 00:00:11]}
c6 {[%clk 00:15:24]} {[%emt 00:00:02]} 8. O-O {[%clk 00:15:06]} {[%emt
00:00:08]} d5 {[%clk 00:15:26]} {[%emt 00:00:03]} 9. cxd5 {[%clk 00:14:30]}
{[%emt 00:00:41]} cxd5 {[%clk 00:15:27]} {[%emt 00:00:04]} 10. Nc3 {[%clk
00:14:05]} {[%emt 00:00:30]} O-O {[%clk 00:15:26]} {[%emt 00:00:06]} 11. Re1
{[%clk 00:14:08]} {[%emt 00:00:03]} Nbd7 {[%clk 00:15:12]} {[%emt 00:00:19]} 12.
Bf4 {[%clk 00:12:04]} {[%emt 00:02:08]} Rc8 {[%clk 00:15:08]} {[%emt 00:00:09]}
13. Rc1 {[%clk 00:11:46]} {[%emt 00:00:24]} Bb4 {[%clk 00:14:36]} {[%emt
00:00:36]} 14. Bd2 {[%clk 00:11:50]} {[%emt 00:00:02]} Qe7 {[%clk 00:14:21]}
{[%emt 00:00:19]} 15. Bf1 {[%clk 00:10:28]} {[%emt 00:01:27]} Rc7 {[%clk
00:13:06]} {[%emt 00:01:20]} 16. Na4 {[%clk 00:10:09]} {[%emt 00:00:24]} Rfc8
{[%clk 00:12:53]} {[%emt 00:00:17]} 17. Rxc7 {[%clk 00:10:03]} {[%emt
00:00:13]} Rxc7 {[%clk 00:12:56]} {[%emt 00:00:01]} 18. Bxb4 {[%clk 00:09:43]}
{[%emt 00:00:25]} Qxb4 {[%clk 00:12:58]} {[%emt 00:00:03]} 19. e3 {[%clk
00:09:20]} {[%emt 00:00:29]} Bxf1 {[%clk 00:12:53]} {[%emt 00:00:10]} 20. Kxf1
{[%clk 00:08:58]} {[%emt 00:00:26]} Ne4 {[%emt 00:00:17]} 21. Re2 {[%clk
00:07:56]} {[%emt 00:01:39]} b5 22. Nb2 {[%emt 00:02:22]} Nc3 {[%clk 00:09:57]}
{[%emt 00:00:05]} 23. Qc1 {[%emt 00:00:09]} Qd6 {[%clk 00:09:50]} {[%emt
00:00:04]} 24. Rc2 {[%clk 00:07:54]} {[%emt 00:00:11]} Nxa2 {[%emt 00:00:42]}
25. Qb1 {[%clk 00:07:29]} {[%emt 00:00:15]} Nb4 {[%clk 00:09:27]} {[%emt
00:00:07]} 26. Rxc7 {[%clk 00:07:21]} {[%emt 00:00:12]} Qxc7 {[%clk 00:09:28]}
{[%emt 00:00:04]} 27. Nd3 {[%clk 00:07:20]} {[%emt 00:00:06]} Nxd3 {[%clk
00:08:23]} {[%emt 00:01:10]} 28. Qxd3 {[%clk 00:07:23]} {[%emt 00:00:02]} a6
{[%emt 00:00:39]} 29. e4 {[%clk 00:06:40]} {[%emt 00:00:12]} Nf6 {[%clk
00:07:43]} {[%emt 00:00:47]} 30. exd5 {[%clk 00:05:56]} {[%emt 00:00:50]} Nxd5
{[%clk 00:07:43]} {[%emt 00:00:05]} 31. Ne5 {[%clk 00:05:26]} {[%emt 00:00:34]}
f6 {[%clk 00:07:26]} {[%emt 00:00:22]} 32. Nf3 {[%clk 00:05:29]} {[%emt
00:00:02]} Qc6 {[%clk 00:06:58]} {[%emt 00:00:33]} 33. Nd2 {[%clk 00:04:50]}
{[%emt 00:00:44]} Nb4 {[%clk 00:06:16]} {[%emt 00:00:47]} 34. Qf3 {[%clk
00:04:44]} {[%emt 00:00:10]} Qxf3 {[%clk 00:05:45]} {[%emt 00:00:37]} 35. Nxf3
{[%clk 00:04:48]} {[%emt 00:00:02]} Kf7 {[%clk 00:05:47]} {[%emt 00:00:03]} 36.
Ke2 {[%clk 00:04:49]} {[%emt 00:00:03]} Ke7 {[%clk 00:05:47]} {[%emt 00:00:05]}
37. Kd2 {[%clk 00:04:53]} {[%emt 00:00:01]} Kd6 {[%clk 00:05:47]} {[%emt
00:00:04]} 38. Kc3 {[%clk 00:04:53]} {[%emt 00:00:07]} Nc6 {[%clk 00:05:44]}
{[%emt 00:00:07]} 39. b4 {[%clk 00:03:50]} {[%emt 00:01:08]} Kd5 {[%clk
00:05:45]} {[%emt 00:00:04]} 40. Nd2 {[%clk 00:03:44]} {[%emt 00:00:12]} Nxd4
{[%clk 00:05:35]} {[%emt 00:00:14]} 41. f4 {[%clk 00:03:27]} {[%emt 00:00:22]}
e5 {[%clk 00:05:26]} {[%emt 00:00:14]} 42. fxe5 {[%clk 00:03:24]} {[%emt
00:00:08]} fxe5 {[%clk 00:05:29]} {[%emt 00:00:03]} 43. Kd3 {[%clk 00:03:28]}
{[%emt 00:00:01]} Nc6 {[%clk 00:05:28]} {[%emt 00:00:05]} 0-1

[Event "Rapid Tournament (RAP)"]
[Site "Biel, Switzerland"]
[Date "2026.07.12"]
[Round "2.37"]
[White "Haugner, Jan"]
[Black "Ziegler, Andrin"]
[Result "1-0"]
[TimeControl "15 + 5"]
[WhiteTitle "-"]
[BlackTitle "-"]
[WhiteFideId "24655244"]
[BlackFideId "1364138"]
[WhiteElo "2079"]
[BlackElo "1730"]

1. e4 {[%clk 00:15:08]} c6 {[%clk 00:15:09]} {[%emt 00:00:02]} 2. Nf3 {[%clk
00:15:10]} {[%emt 00:00:02]} d5 {[%clk 00:15:13]} {[%emt 00:00:03]} 3. d3
{[%clk 00:15:14]} Bg4 {[%clk 00:15:15]} {[%emt 00:00:02]} 4. h3 {[%clk
00:15:11]} {[%emt 00:00:09]} Bxf3 {[%clk 00:15:13]} {[%emt 00:00:07]} 5. Qxf3
{[%clk 00:15:14]} {[%emt 00:00:01]} e6 {[%clk 00:15:14]} {[%emt 00:00:05]} 6.
g4 {[%clk 00:14:53]} {[%emt 00:00:26]} Bd6 {[%clk 00:15:00]} {[%emt 00:00:19]}
7. Bg2 {[%clk 00:14:54]} {[%emt 00:00:03]} Ne7 {[%clk 00:14:05]} {[%emt
00:01:01]} 8. Qe2 {[%clk 00:14:38]} {[%emt 00:00:21]} Ng6 {[%clk 00:13:39]}
{[%emt 00:00:31]} 9. O-O {[%clk 00:13:34]} {[%emt 00:01:09]} Nd7 {[%clk
00:13:20]} {[%emt 00:00:24]} 10. f4 {[%clk 00:12:49]} {[%emt 00:00:50]} Qc7
{[%clk 00:12:47]} {[%emt 00:00:37]} 11. e5 {[%clk 00:11:13]} {[%emt 00:01:42]}
Bc5+ {[%clk 00:12:51]} {[%emt 00:00:01]} 12. Kh1 {[%clk 00:11:05]} {[%emt
00:00:13]} O-O-O {[%clk 00:11:53]} {[%emt 00:01:04]} 13. c3 {[%clk 00:10:23]}
{[%emt 00:00:46]} f6 {[%clk 00:09:31]} {[%emt 00:02:27]} 14. d4 {[%clk
00:09:50]} {[%emt 00:00:38]} Bb6 {[%clk 00:09:35]} {[%emt 00:00:01]} 15. Nd2
{[%clk 00:07:47]} {[%emt 00:02:08]} Nh4 {[%clk 00:07:55]} {[%emt 00:01:44]} 16.
Nf3 {[%clk 00:07:50]} {[%emt 00:00:03]} Nxg2 {[%clk 00:07:57]} {[%emt
00:00:03]} 17. Kxg2 {[%clk 00:07:36]} {[%emt 00:00:18]} Rde8 {[%clk 00:07:39]}
{[%emt 00:00:23]} 18. a4 {[%clk 00:07:27]} {[%emt 00:00:14]} a6 {[%clk
00:07:24]} {[%emt 00:00:22]} 19. b4 {[%clk 00:07:30]} {[%emt 00:00:02]} fxe5
{[%clk 00:06:49]} {[%emt 00:00:39]} 20. fxe5 {[%clk 00:07:24]} {[%emt
00:00:11]} a5 {[%clk 00:06:24]} {[%emt 00:00:30]} 21. Ba3 {[%clk 00:06:33]}
{[%emt 00:00:55]} axb4 {[%clk 00:06:18]} {[%emt 00:00:11]} 22. Bxb4 {[%clk
00:06:31]} {[%emt 00:00:07]} c5 {[%clk 00:06:01]} {[%emt 00:00:22]} 23. Ba3
{[%clk 00:06:08]} {[%emt 00:00:28]} cxd4 {[%clk 00:05:49]} {[%emt 00:00:18]} 24.
cxd4 {[%clk 00:05:52]} {[%emt 00:00:20]} Kb8 {[%clk 00:05:20]} {[%emt
00:00:35]} 25. Bd6 {[%clk 00:05:56]} {[%emt 00:00:01]} Ka7 {[%clk 00:04:01]}
{[%emt 00:01:24]} 26. Bxc7 {[%clk 00:05:59]} {[%emt 00:00:02]} Bxc7 {[%clk
00:04:05]} 27. Qb5 {[%clk 00:05:54]} {[%emt 00:00:10]} 1-0

[Event "Rapid Tournament (RAP)"]
[Site "Biel, Switzerland"]
[Date "2026.07.12"]
[Round "2.38"]
[White "Chu, Wa Ching David"]
[Black "Ling, Chenxuan"]
[Result "0-1"]
[TimeControl "15 + 5"]
[WhiteTitle "-"]
[BlackTitle "-"]
[WhiteFideId "6013180"]
[BlackFideId "30983118"]
[WhiteElo "1723"]
[BlackElo "2077"]

1. d4 {[%clk 00:15:08]} {[%emt 00:10:08]} Nf6 {[%clk 00:15:08]} {[%emt
00:00:03]} 2. Bg5 {[%clk 00:15:10]} {[%emt 00:00:05]} Ne4 {[%clk 00:15:09]}
{[%emt 00:00:02]} 3. Bh4 {[%clk 00:15:13]} {[%emt 00:00:01]} d5 {[%clk
00:15:08]} {[%emt 00:00:06]} 4. f3 {[%clk 00:15:15]} {[%emt 00:00:03]} g5
{[%clk 00:15:12]} {[%emt 00:00:02]} 5. fxe4 {[%clk 00:15:18]} {[%emt 00:00:01]}
gxh4 {[%clk 00:15:15]} {[%emt 00:00:01]} 6. exd5 {[%clk 00:15:21]} {[%emt
00:00:02]} Qxd5 {[%clk 00:15:16]} {[%emt 00:00:05]} 7. Nc3 {[%clk 00:15:26]}
Qd8 {[%clk 00:14:57]} {[%emt 00:00:24]} 8. Nf3 {[%clk 00:15:29]} {[%emt
00:00:02]} Bg7 {[%clk 00:14:59]} {[%emt 00:00:03]} 9. e3 {[%clk 00:15:27]}
{[%emt 00:00:07]} c5 {[%clk 00:14:59]} {[%emt 00:00:05]} 10. Qd3 {[%clk
00:15:28]} {[%emt 00:00:04]} Nc6 {[%clk 00:14:32]} {[%emt 00:00:32]} 11. O-O-O
{[%clk 00:14:38]} {[%emt 00:00:55]} Bg4 {[%clk 00:14:16]} {[%emt 00:00:21]} 12.
Be2 {[%clk 00:12:19]} {[%emt 00:02:23]} Qa5 {[%clk 00:13:40]} {[%emt 00:00:41]}
13. Qb5 {[%clk 00:11:00]} {[%emt 00:01:24]} Qxb5 {[%clk 00:12:41]} {[%emt
00:01:04]} 14. Nxb5 {[%clk 00:10:49]} {[%emt 00:00:16]} O-O-O {[%clk 00:12:41]}
{[%emt 00:00:04]} 15. h3 {[%clk 00:08:31]} {[%emt 00:02:25]} Bh5 {[%clk
00:12:33]} {[%emt 00:00:12]} 16. Rhe1 {[%clk 00:08:02]} {[%emt 00:00:34]} a6
{[%clk 00:12:02]} {[%emt 00:00:37]} 17. Na3 {[%clk 00:06:29]} {[%emt 00:01:37]}
Bh6 {[%clk 00:11:48]} {[%emt 00:00:20]} 18. Kb1 {[%clk 00:05:08]} {[%emt
00:01:26]} Bxe3 {[%clk 00:11:18]} {[%emt 00:00:35]} 19. Nc4 {[%clk 00:05:00]}
{[%emt 00:00:13]} cxd4 {[%clk 00:10:57]} {[%emt 00:00:27]} 20. Nxh4 {[%clk
00:04:04]} {[%emt 00:01:00]} Bxe2 {[%clk 00:10:50]} {[%emt 00:00:11]} 21. Rxe2
{[%clk 00:04:08]} {[%emt 00:00:01]} Bg5 {[%clk 00:10:52]} {[%emt 00:00:04]} 22.
Nf3 {[%clk 00:03:27]} {[%emt 00:00:45]} Bf6 {[%clk 00:10:53]} {[%emt 00:00:04]}
23. Nce5 {[%clk 00:03:21]} {[%emt 00:00:12]} Nxe5 {[%clk 00:10:47]} {[%emt
00:00:11]} 24. Nxe5 {[%emt 00:00:07]} Rhf8 {[%clk 00:10:46]} 25. Ng4 {[%clk
00:02:52]} {[%emt 00:00:37]} Bg5 {[%clk 00:10:33]} {[%emt 00:00:18]} 26. Re5
{[%clk 00:02:03]} {[%emt 00:00:54]} f5 {[%clk 00:10:28]} {[%emt 00:00:11]} 27.
Rc5+ {[%clk 00:01:40]} {[%emt 00:00:28]} Kb8 {[%clk 00:10:32]} {[%emt
00:00:01]} 28. Ne5 {[%clk 00:01:43]} {[%emt 00:00:02]} Bf6 {[%clk 00:10:27]}
{[%emt 00:00:10]} 29. g4 {[%clk 00:00:58]} {[%emt 00:00:50]} Ka8 {[%clk
00:09:39]} {[%emt 00:00:53]} 30. Nf3 {[%clk 00:00:19]} {[%emt 00:00:43]} fxg4
{[%clk 00:09:42]} {[%emt 00:00:03]} 31. hxg4 {[%clk 00:00:23]} Kb8 {[%clk
00:09:08]} {[%emt 00:00:39]} 32. Rh5 {[%clk 00:00:23]} {[%emt 00:00:05]} Rg8
{[%clk 00:08:48]} {[%emt 00:00:26]} 33. g5 {[%clk 00:00:22]} {[%emt 00:00:06]}
Bh8 {[%clk 00:08:48]} {[%emt 00:00:04]} 34. Rxh7 {[%clk 00:00:26]} e5 {[%clk
00:08:53]} {[%emt 00:00:01]} 35. Re7 {[%clk 00:00:28]} {[%emt 00:00:03]} Rde8
{[%clk 00:08:52]} {[%emt 00:00:05]} 36. Rxe8+ Rxe8 37. Re1 {[%clk 00:00:30]}
{[%emt 00:00:01]} e4 {[%clk 00:08:56]} {[%emt 00:00:05]} 38. Nh4 {[%clk
00:00:30]} {[%emt 00:00:05]} e3 {[%clk 00:08:54]} {[%emt 00:00:08]} 39. g6
{[%clk 00:00:30]} {[%emt 00:00:05]} Rf8 {[%clk 00:08:57]} {[%emt 00:00:02]} 40.
b3 {[%clk 00:00:09]} {[%emt 00:00:26]} Kc7 {[%clk 00:08:56]} {[%emt 00:00:06]}
41. Rg1 {[%clk 00:00:10]} {[%emt 00:00:03]} Bg7 {[%clk 00:09:00]} 42. Re1
{[%clk 00:00:08]} {[%emt 00:00:08]} Kd6 {[%clk 00:09:01]} {[%emt 00:00:04]} 43.
c3 {[%clk 00:00:08]} {[%emt 00:00:05]} Rf4 {[%clk 00:08:52]} {[%emt 00:00:14]}
44. Ng2 {[%clk 00:00:12]} Rg4 {[%clk 00:08:44]} {[%emt 00:00:13]} 45. Nxe3
{[%clk 00:00:14]} {[%emt 00:00:03]} dxe3 {[%clk 00:08:48]} 46. Rxe3 {[%clk
00:00:18]} {[%emt 00:00:01]} Rxg6 {[%clk 00:08:52]} 47. Kb2 {[%clk 00:00:19]}
{[%emt 00:00:04]} Kc6 {[%clk 00:08:55]} {[%emt 00:00:02]} 48. Ka3 {[%clk
00:00:22]} {[%emt 00:00:02]} Rg5 {[%clk 00:08:56]} {[%emt 00:00:04]} 49. Kb4
{[%clk 00:00:22]} {[%emt 00:00:06]} Rb5+ {[%clk 00:08:58]} {[%emt 00:00:02]} 50.
Ka3 {[%clk 00:00:20]} {[%emt 00:00:06]} Re5 {[%clk 00:09:02]} {[%emt 00:00:02]}
51. Rg3 {[%clk 00:00:17]} {[%emt 00:00:05]} Bf8+ {[%clk 00:09:05]} {[%emt
00:00:04]} 52. Kb2 {[%clk 00:00:09]} {[%emt 00:00:14]} Re2+ {[%clk 00:09:09]}
{[%emt 00:00:02]} 53. Kb1 {[%clk 00:00:13]} Ba3 {[%clk 00:08:52]} {[%emt
00:00:22]} 54. Rg6+ {[%clk 00:00:06]} {[%emt 00:00:12]} Kd5 {[%clk 00:08:50]}
{[%emt 00:00:08]} 55. Rg7 {[%clk 00:00:08]} {[%emt 00:00:02]} Rb2+ {[%clk
00:08:54]} {[%emt 00:00:01]} 56. Ka1 {[%clk 00:00:12]} {[%emt 00:00:02]} Rc2
{[%clk 00:08:57]} {[%emt 00:00:01]} 57. Rxb7 {[%clk 00:00:13]} {[%emt
00:00:04]} Rc1# {[%clk 00:09:01]} 0-1

[Event "Rapid Tournament (RAP)"]
[Site "Biel, Switzerland"]
[Date "2026.07.12"]
[Round "2.39"]
[White "Piazza, Carlo"]
[Black "Knuesel, Jolan"]
[Result "1-0"]
[TimeControl "15 + 5"]
[WhiteTitle "-"]
[BlackTitle "-"]
[WhiteFideId "809683"]
[BlackFideId "1364529"]
[WhiteElo "2076"]
[BlackElo "1651"]

1. e4 {[%clk 00:15:09]} c6 {[%clk 00:15:08]} 2. d4 {[%clk 00:15:11]} {[%emt
00:00:04]} d5 {[%clk 00:15:12]} {[%emt 00:00:03]} 3. e5 {[%clk 00:15:14]} c5
{[%clk 00:15:16]} {[%emt 00:00:01]} 4. dxc5 {[%clk 00:15:18]} {[%emt 00:00:02]}
Nc6 {[%clk 00:15:20]} {[%emt 00:00:01]} 5. Nf3 {[%clk 00:15:21]} {[%emt
00:00:03]} Bg4 {[%clk 00:15:23]} 6. Bb5 {[%clk 00:15:24]} {[%emt 00:00:01]} e6
{[%clk 00:15:26]} {[%emt 00:00:03]} 7. Be3 {[%clk 00:15:27]} {[%emt 00:00:01]}
Qa5+ {[%clk 00:14:04]} {[%emt 00:01:27]} 8. Nc3 {[%clk 00:15:23]} {[%emt
00:00:08]} a6 {[%clk 00:14:07]} {[%emt 00:00:03]} 9. Bxc6+ {[%clk 00:14:33]}
{[%emt 00:00:55]} bxc6 {[%clk 00:14:10]} {[%emt 00:00:02]} 10. a3 {[%clk
00:14:30]} {[%emt 00:00:08]} Ne7 {[%clk 00:13:00]} {[%emt 00:01:15]} 11. b4
{[%clk 00:12:52]} {[%emt 00:01:43]} Qc7 {[%clk 00:13:03]} {[%emt 00:00:02]} 12.
Bd4 {[%clk 00:12:32]} {[%emt 00:00:24]} Nf5 {[%clk 00:12:26]} {[%emt 00:00:43]}
13. Qd3 {[%clk 00:11:46]} {[%emt 00:00:50]} Bxf3 {[%clk 00:10:56]} {[%emt
00:01:36]} 14. gxf3 {[%clk 00:11:47]} {[%emt 00:00:04]} Nxd4 {[%clk 00:10:28]}
{[%emt 00:00:33]} 15. Qxd4 {[%clk 00:11:50]} {[%emt 00:00:02]} g6 {[%clk
00:10:26]} {[%emt 00:00:07]} 16. f4 {[%clk 00:11:09]} {[%emt 00:00:46]} Bh6
{[%clk 00:09:38]} {[%emt 00:00:52]} 17. Ne2 {[%clk 00:09:26]} {[%emt 00:01:48]}
O-O {[%clk 00:07:52]} {[%emt 00:01:51]} 18. h4 {[%clk 00:08:49]} {[%emt
00:00:43]} a5 {[%clk 00:07:31]} {[%emt 00:00:27]} 19. c3 {[%clk 00:08:46]}
{[%emt 00:00:08]} Bg7 {[%clk 00:06:52]} {[%emt 00:00:43]} 20. h5 {[%clk
00:07:33]} {[%emt 00:01:18]} f6 {[%clk 00:06:22]} {[%emt 00:00:36]} 21. hxg6
{[%clk 00:07:17]} {[%emt 00:00:20]} hxg6 {[%clk 00:06:25]} {[%emt 00:00:02]} 22.
Qd3 {[%clk 00:06:29]} {[%emt 00:00:54]} f5 {[%clk 00:05:59]} {[%emt 00:00:30]}
23. Nd4 {[%clk 00:06:23]} {[%emt 00:00:11]} Qd7 {[%clk 00:05:39]} {[%emt
00:00:25]} 24. Qg3 {[%clk 00:06:17]} {[%emt 00:00:10]} Qe8 {[%clk 00:04:30]}
{[%emt 00:01:15]} 25. Kd2 {[%clk 00:04:50]} {[%emt 00:01:32]} Kf7 {[%clk
00:02:31]} {[%emt 00:02:04]} 26. Rag1 {[%clk 00:04:42]} {[%emt 00:00:13]} Ke7
{[%clk 00:01:02]} {[%emt 00:01:33]} 27. Qxg6 {[%clk 00:04:45]} {[%emt
00:00:03]} Qxg6 {[%clk 00:01:04]} {[%emt 00:00:03]} 28. Rxg6 {[%clk 00:04:48]}
Rg8 {[%clk 00:00:54]} {[%emt 00:00:16]} 29. Rhg1 {[%clk 00:04:40]} {[%emt
00:00:13]} Kf7 {[%clk 00:00:48]} {[%emt 00:00:11]} 30. Nxe6 {[%clk 00:04:40]}
{[%emt 00:00:05]} Bh6 {[%clk 00:00:40]} {[%emt 00:00:13]} 31. Rxg8 {[%clk
00:04:36]} {[%emt 00:00:08]} Rxg8 {[%clk 00:00:42]} {[%emt 00:00:03]} 32. Rxg8
{[%clk 00:04:40]} {[%emt 00:00:01]} Kxg8 {[%clk 00:00:45]} {[%emt 00:00:02]} 33.
Ke3 {[%clk 00:04:43]} {[%emt 00:00:04]} axb4 {[%emt 00:00:14]} 34. cxb4 {[%clk
00:04:45]} {[%emt 00:00:01]} Kf7 {[%clk 00:00:24]} {[%emt 00:00:18]} 35. Nd4
{[%clk 00:04:49]} Kg6 {[%clk 00:00:25]} {[%emt 00:00:04]} 36. Nxc6 {[%clk
00:04:51]} {[%emt 00:00:02]} Kh5 {[%clk 00:00:29]} {[%emt 00:00:02]} 37. e6
{[%clk 00:04:46]} {[%emt 00:00:10]} 1-0